Cogmind - Beta 14 @@@ ROGUE MODE // 2024.10.25 @ 10:14:58 Player: laeb2 Result: Destroyed by P-80 Master with Gamma Rifle Performance ------------- Evolutions (9) 4500 Regions Visited (17) 3400 Robots Destroyed (124) 620 Value Destroyed (3755) 3755 Prototype IDs (40) 800 Alien Tech Used (0) 0 Bonus (3241) 3241 TOTAL SCORE: 16316 Bonus ------- High Alert Combat Kills 166 Follower Combat Kills 1040 Aligned with FarCom 300 Built Enhanced Grunts 300 A7 Reached Mainframe 300 Met R17 at Cetus 500 Met R17 at Research 2000 Friendly Fire -1365 Cogmind --------- Core Integrity 0/1600 Matter 251/300 Energy 100/100 System Corruption 77% Temperature Cool (0) Movement Core (50) Location -1/Command Parts ------- > --- POWER (2) -------- (None) > --- PROPULSION (7) --- (None) > --- UTILITY (14) ----- (None) > --- WEAPON (2) ------- (None) > --- INVENTORY (5) ---- (None) Peak State ------------ > --- POWER ------------ Light Particle Reactor Light Particle Reactor > --- PROPULSION ------- Cooled VTOL Module Cooled VTOL Module Impulse Thruster Field Propulsion Array Q-thruster Cooled Impulse Thruster > --- UTILITY ---------- Advanced Cryofiber Web Small Storage Unit Advanced Signal Interpreter Experimental Reaction Control System Centrium Medium Armor Plating Hacking Suite Improved Hacking Suite Experimental Hacking Suite System Shield Improved System Shield Improved System Shield > --- WEAPON ----------- Hypervelocity Railgun Ionic Axe > --- INVENTORY -------- Advanced Cooling System Centrium Light Armor Plating System Restoration Module Fusion Bomb Launcher Advanced Datajack Improved Plasma Cutter Chainsword [Rating: 144] Favorites ----------- Power Ion Engine Engine Ion Engine Power Core Light Nuclear Core Reactor Micro Antimatter Reactor Propulsion Cooled VTOL Module Treads Light Treads Leg Improved Titanium Leg Flight Unit Cooled VTOL Module Utility Hacking Suite Device Advanced Cryofiber Web Storage Large Storage Unit Processor Improved Melee Analysis Suite Hackware Hacking Suite Protection Centrium Medium Armor Plating Weapon Assault Rifle Ballistic Gun Assault Rifle Ballistic Cannon Flak Cannon Launcher Heavy Missile Launcher Special Weapon Improved Plasma Cutter Impact Weapon Makeshift Hammer Slashing Weapon Katana Special Melee Weapon Advanced Datajack Build | -11 -10 -10 -10 -9 -8 -7 -6 -5 -5 -5 -4 -4 -4 -3 -2 -1 -1 ------- Run | Yrd Mat Min Exi Min Mat Fac Fac Fac Upp Upp Fac Ext Cet Res Res Acc Com Slots Evolved 18 | . . . . . 4 2 2 2 . . 2 . . 2 2 2 . Power 1 | . . . . . . . . . . . . . . . 1 . . Propulsion 5 | . . . . . 2 . 2 . . . . . . 1 . . . Utility 12 | . . . . . 2 2 . 2 . . 2 . . 1 1 2 . Weapon . | . . . . . . . . . . . . . . . . . . Parts Attached 170 | 8 3 9 1 1 8 7 17 20 2 . 11 3 7 34 9 14 16 Power 24 | 1 . 1 . . 1 1 1 3 . . 2 . 3 2 4 2 3 Engine 9 | 1 . . . . . 1 1 2 . . 2 . . . . 1 1 Core 6 | . . 1 . . 1 . . 1 . . . . 2 . . . 1 Reactor 9 | . . . . . . . . . . . . . 1 2 4 1 1 Propulsion 44 | 4 . 3 . 1 3 1 9 6 . . 1 . . 7 1 2 6 Treads 4 | 2 . 2 . . . . . . . . . . . . . . . Leg 19 | 2 . 1 . 1 3 1 9 1 . . . . . 1 . . . Wheel . | . . . . . . . . . . . . . . . . . . Hover . | . . . . . . . . . . . . . . . . . . Flight 21 | . . . . . . . . 5 . . 1 . . 6 1 2 6 Utility 66 | 1 1 1 . . 3 3 5 8 . . 7 1 2 17 4 9 4 Device 19 | . . . . . . . 1 2 . . 2 . 1 5 3 3 2 Storage 5 | 1 1 1 . . 1 . . 1 . . . . . . . . . Processor 18 | . . . . . 1 2 1 1 . . 3 1 . 3 . 6 . Hackware 14 | . . . . . 1 . 3 2 . . 2 . . 3 1 . 2 Protection 10 | . . . . . . 1 . 2 . . . . 1 6 . . . Artifact . | . . . . . . . . . . . . . . . . . . Weapon 36 | 2 2 4 1 . 1 2 2 3 2 . 1 2 2 8 . 1 3 Energy Gun . | . . . . . . . . . . . . . . . . . . Energy Cannon . | . . . . . . . . . . . . . . . . . . Ballistic Gun 18 | 2 1 4 1 . . 1 . 1 1 . . . 2 4 . . 1 Ballistic Cannon 3 | . . . . . 1 . 1 1 . . . . . . . . . Launcher 4 | . . . . . . . . . . . . 1 . 2 . . 1 Special Weapon 1 | . . . . . . . . . . . . . . . . 1 . Impact Weapon 2 | . . . . . . . . . 1 . . . . 1 . . . Slashing Weapon 4 | . . . . . . 1 1 . . . 1 . . 1 . . . Piercing Weapon . | . . . . . . . . . . . . . . . . . . Special Melee Weapon 4 | . 1 . . . . . . 1 . . . 1 . . . . 1 Unidentified Prototypes 13 | . . . . . . . . 3 . . 1 . 2 6 . 1 . Parts Lost 75 | . . 8 . 1 . . 5 12 . . 1 . 1 5 6 2 34 Power 10 | . . 1 . . . . 1 1 . . 1 . 1 1 . 1 3 Propulsion 26 | . . 3 . 1 . . 1 6 . . . . . 2 3 . 10 Utility 27 | . . . . . . . 3 2 . . . . . 2 3 1 16 Weapon 12 | . . 4 . . . . . 3 . . . . . . . . 5 Highest Loss Streak 29 | . . 3 . 1 . . 4 3 . . 1 . 1 2 4 1 29 To Critical Strikes 1 | . . . . . . . . . . . . . 1 . . . . Average Slot Usage (%) 90 | . 99 94 100 99 73 83 92 84 82 82 90 94 90 91 83 81 70 Engine 4 | . 14 11 . . . 4 5 2 5 5 4 5 . . . . . Core 2 | . . . 14 14 9 2 . 2 . . . . 1 . . . . Treads 5 | . 28 25 14 . . . . . . . . . . . . . . Leg 13 | . . 1 14 27 28 30 37 23 5 5 . . . . . . . Flight 9 | . . . . . . . . 5 23 23 25 26 26 24 22 17 17 Device 3 | . . . . . . . . 5 5 5 9 8 4 6 10 12 12 Storage 11 | . 27 28 28 28 9 7 6 5 5 5 5 5 5 4 4 4 3 Processor 7 | . . . . . 7 11 11 6 5 5 10 11 15 8 4 21 14 Hackware 14 | . . . . . 1 7 14 20 17 17 24 26 26 27 26 18 15 Protection 1 | . . . . . . 2 1 3 5 5 . . . 3 3 . . Ballistic Gun 9 | . 25 26 28 28 15 7 6 1 3 . . . 4 3 3 . . Slashing Weapon 2 | . . . . . . 2 5 3 . . 2 4 . 3 4 4 3 Peak Build Rating 144 | 6 8 10 12 12 20 42 60 77 72 64 95 100 110 138 144 118 136 Average Rating 63 | 4 7 8 11 11 14 31 53 66 65 64 88 96 101 122 129 111 100 On Entrance 56 | . 6 8 10 12 12 20 42 59 72 64 64 95 100 107 137 92 117 Naked Turns 39 | . . . . . . . . . . . . . . . . . 39 Heaviest Build 109 | 14 34 109 107 107 87 56 56 49 19 16 20 24 35 40 42 31 31 Greatest Support 120 | 40 40 40 20 20 43 53 120 70 20 28 43 43 35 57 47 44 45 Greatest Overweight (x) 10 | 2 . 5 5 10 2 1 1 . . . . . . . 1 . 1 Average Overweight (x) . | . . 1 5 6 1 . . . . . . . . . . . . Largest Inventory Capacity 25 | 8 15 25 25 25 25 15 15 15 8 8 8 8 8 8 8 8 8 Average Capacity 14 | 7 14 24 25 25 23 15 15 13 8 8 8 8 8 8 8 8 7 Most Carried 25 | 6 15 25 22 23 25 15 15 15 8 8 8 8 8 8 8 8 8 Average Carried 12 | 4 8 20 21 22 22 14 14 13 7 8 7 7 7 7 7 7 6 Final Capacity 25 | 8 15 25 25 25 15 15 15 8 8 8 8 8 8 8 8 8 5 Final Carried 23 | 4 15 22 22 23 15 14 15 8 8 8 8 8 8 8 8 5 . Class Distribution -------------------- 33% | Mutant 26% | Hacker-Mutant 20% | Wizard-Sprinter 9% | Hacker-Sprinter 5% | Scavenger-Mutant Dominant Class ---------------- Mutant | -10/Materials Mutant | -10/Mines Mutant | -10/Exiles Mutant | -9/Mines Mutant | -8/Materials Scavenger-Mutant | -7/Factory Hacker-Mutant | -6/Factory Hacker-Mutant | -5/Factory Hacker-Mutant | -5/Upper Caves Hacker-Mutant | -5/Upper Caves Hacker-Sprinter | -4/Factory Hacker-Sprinter | -4/Extension Hacker-Mutant | -4/Cetus Wizard-Sprinter | -3/Research Wizard-Sprinter | -2/Research Wizard-Sprinter | -1/Access Hacker-Scout | -1/Command Resources | -11 -10 -10 -10 -9 -8 -7 -6 -5 -5 -5 -4 -4 -4 -3 -2 -1 -1 ----------- Run | Yrd Mat Min Exi Min Mat Fac Fac Fac Upp Upp Fac Ext Cet Res Res Acc Com Matter Collected 3538 | 267 355 359 . 53 135 130 280 460 122 . 115 156 129 622 96 145 114 Remotely . | . . . . . . . . . . . . . . . . . . Salvage Created 4669 | 98 598 413 . 91 152 96 395 732 . . 45 187 . 1027 20 335 480 Parts 261 | 5 40 32 . 12 11 4 31 34 . . . 13 . 29 4 15 31 Haulers Intercepted 12 | . 2 . . . 2 . . 1 . . . . . 5 . 2 . Recyclers Shooed 6 | . 2 . . . 1 2 . . . . . . . 1 . . . Parts Field Recycled . | . . . . . . . . . . . . . . . . . . Retrieved Matter . | . . . . . . . . . . . . . . . . . . Parts Self-Destructed . | . . . . . . . . . . . . . . . . . . Prevented . | . . . . . . . . . . . . . . . . . . Kills | -11 -10 -10 -10 -9 -8 -7 -6 -5 -5 -5 -4 -4 -4 -3 -2 -1 -1 ------- Run | Yrd Mat Min Exi Min Mat Fac Fac Fac Upp Upp Fac Ext Cet Res Res Acc Com Combat Hostiles Destroyed 68 | . 11 17 . 5 1 2 8 8 . . . 7 . 3 . . 6 Melee 12 | . . . . . . . 4 3 . . . 1 . . . . 4 Guns 41 | . 11 17 . 5 . . 3 . . . . . . 3 . . 2 Cannons 9 | . . . . . 1 2 1 5 . . . . . . . . . AOE 6 | . . . . . . . . . . . . 6 . . . . . Classes Destroyed 16 | 2 5 . . 1 2 . 4 . . . . . . 1 . . 1 Worker 6 | . . . . . 1 1 1 1 . . . . . 2 . . . Builder 5 | . . . . . . . 1 1 . . . . . 1 . 2 . Tunneler 1 | 1 . . . . . . . . . . . . . . . . . Hauler 12 | . 2 . . . 2 . . 1 . . . . . 5 . 2 . Recycler 5 | 1 2 . . . . . . 1 . . . . . 1 . . . Operator 9 | . 1 . . . . . 1 2 . . . 1 . 1 1 . 2 Watcher 19 | . 3 . . . . . 2 4 . . 1 2 . 2 . 3 2 Swarmer 28 | . 5 11 . 3 . . 2 . . . . 7 . . . . . Cutter 2 | . . . . . . . . . . . . . . . . . 2 Grunt 18 | . 6 6 . 1 . 2 . 2 . . . . . 1 . . . Brawler 2 | . . . . . . . 1 1 . . . . . . . . . Sentry 2 | . . . . . 1 . . 1 . . . . . . . . . Hunter 2 | . . . . . . . 1 . . . . . . 1 . . . Programmer 12 | . . . . . . . 4 4 . . . . . . . . 4 Striker 1 | . . . . . . . . . . . . . . 1 . . . Assembled 1 | . . . . 1 . . . . . . . . . . . . . Best Kill Streak 5 | 2 5 3 . 3 4 1 2 3 . . 1 4 . 4 . 1 4 Combat Bots Only 5 | . 5 3 . 3 1 1 2 2 . . . 4 . 1 . . 2 Max Kills in Single Turn 2 | 1 2 2 . 1 1 1 2 1 . . 1 2 . 1 1 1 1 Gunslinging 1 | . . 1 . . . . . . . . . . . . . . . Exploded 2 | . . . . . . . . . . . . 2 . . . . . Melee 1 | . . . . . . . 1 1 . . . 1 . . . . 1 Uniques/NPCs Destroyed . | . . . . . . . . . . . . . . . . . . Combat | -11 -10 -10 -10 -9 -8 -7 -6 -5 -5 -5 -4 -4 -4 -3 -2 -1 -1 -------- Run | Yrd Mat Min Exi Min Mat Fac Fac Fac Upp Upp Fac Ext Cet Res Res Acc Com Hostile Shots Fired 695 | . 42 127 . 37 8 6 71 102 . 1 3 14 9 95 28 21 131 Missed 251 | . 15 34 . 12 3 3 17 28 . 1 1 5 4 47 13 13 55 Damage Taken 10082 | . 294 971 . 239 77 57 1438 1593 . . 97 158 101 797 586 179 3495 Core 2577 | . 42 115 . 59 15 17 174 96 . . 71 47 49 153 121 47 1571 Absorbed by Shields 57 | . . . . . . . . . . . . 29 28 . . . . Core Remaining (%) 82 | 100 . . . 13 97 97 79 . . 90 . . 85 88 91 . . Volleys Fired 293 | 4 48 67 . 19 10 9 17 44 . . . 9 6 46 6 . 8 Largest 2 | 2 2 2 . 2 2 2 2 1 . . . 1 1 1 1 . 1 Hottest 72 | 40 40 40 . 40 64 72 72 44 . . . 39 39 40 40 . 40 Shots Fired 455 | 8 96 129 . 38 20 18 28 44 . . . 9 6 46 6 . 7 Gun 390 | 8 96 129 . 38 13 9 22 16 . . . . 2 44 6 . 7 Cannon 50 | . . . . . 7 9 6 28 . . . . . . . . . Launcher 15 | . . . . . . . . . . . . 9 4 2 . . . Special . | . . . . . . . . . . . . . . . . . . Kinetic 440 | 8 96 129 . 38 20 18 28 44 . . . . 2 44 6 . 7 Thermal . | . . . . . . . . . . . . . . . . . . Explosive 15 | . . . . . . . . . . . . 9 4 2 . . . Electromagnetic . | . . . . . . . . . . . . . . . . . . Robot Hit Streak 15 | 1 6 7 . 5 5 6 8 10 . . . 11 15 6 5 . 5 Robot Miss Streak 8 | 3 2 5 . 3 3 7 8 6 . . . . 1 4 2 . 2 Penetration Max 2 | . . . . . . . . 1 . . . . . 2 . . . Secondary Targets 5 | . 1 4 . . . . . . . . . . . . . . . Max Gunslinging Chain 1 | . 1 1 . . . . . . . . . . . . . . . Shots Hit Robots 440 | 3 63 76 . 23 17 14 56 74 . . 1 15 4 51 5 12 26 Core Hits 266 | 2 31 29 . 10 14 16 42 54 . . . 11 14 23 2 6 12 Critical Kills 7 | . . . . . . . . . . . . . . 4 1 . 2 Critical Parts Destroyed 12 | . . . . . . 1 . . . . 1 . . 9 1 . . Critical Strikes 30 | . . . . . . 1 3 3 . . 1 2 . 13 2 1 4 Destroy 18 | . . . . . . 1 . . . . . . . 13 2 . 2 Smash 1 | . . . . . . . . . . . 1 . . . . . . Sever 11 | . . . . . . . 3 3 . . . 2 . . . 1 2 Melee Attacks 234 | . . . . . . 1 35 48 . . 6 24 . 33 12 25 50 Impact 31 | . . . . . . . . . . . 6 . . 25 . . . Slashing 198 | . . . . . . 1 35 48 . . . 19 . 8 12 25 50 Piercing . | . . . . . . . . . . . . . . . . . . Sneak Attacks 29 | . . . . . . 1 1 3 . . . 7 . 9 . 5 3 Combat Hostiles 2 | . . . . . . . . . . . . . . 1 . . 1 Follow-up Attacks . | . . . . . . . . . . . . . . . . . . Damage Inflicted 13357 | 53 861 899 . 194 215 315 1890 2535 . . 67 1073 364 2349 43 926 1573 Guns 3137 | 53 856 899 . 191 80 56 304 290 . . . . 30 284 43 . 51 Cannons 1013 | . . . . . 135 150 94 634 . . . . . . . . . Explosions 1838 | . . . . . . . 417 257 . . . 589 334 241 . . . Melee 7311 | . . . . . . 72 1062 1354 . . 67 484 . 1824 . 926 1522 Ramming 58 | . 5 . . 3 . 37 13 . . . . . . . . . . Kinetic 4150 | 53 856 899 . 191 215 206 398 924 . . . . 30 284 43 . 51 Thermal 113 | . . . . . . . . 113 . . . . . . . . . Explosive 1725 | . . . . . . . 417 144 . . . 589 334 241 . . . Electromagnetic . | . . . . . . . . . . . . . . . . . . Impact 1234 | . . . . . . . . . . . 67 . . 1167 . . . Slashing 6077 | . . . . . . 72 1062 1354 . . . 484 . 657 . 926 1522 Piercing . | . . . . . . . . . . . . . . . . . . Highest Corruption 76 | . . . . . . . 16 6 3 3 . . . . 1 1 76 Average Corruption 4 | . . . . . . . 5 2 3 3 . . . . 1 1 13 Corruption Purged 5 | . . . . . . . . 5 . . . . . . . . . Corruption Blocked 1 | . . . . . . . . . . . . . . 1 . . . Effects 108 | . . . . . . . 62 28 3 . . . . . . 4 11 Message Errors 25 | . . . . . . . 17 6 . . . . . . . 1 1 Matter Fused 28 | . . . . . . . 15 6 1 . . . . . . 1 5 Heat Flow Errors 8 | . . . . . . . 5 1 1 . . . . . . 1 . Energy Discharges 22 | . . . . . . . 10 9 1 . . . . . . . 2 Parts Rejected 1 | . . . . . . . . 1 . . . . . . . . . Parts Fused 2 | . . . . . . . 2 . . . . . . . . . . Data Loss (minor) 10 | . . . . . . . 3 5 . . . . . . . 1 1 Data Loss (major) 3 | . . . . . . . 2 . . . . . . . . . 1 Misfires 6 | . . . . . . . 6 . . . . . . . . . . Alerts 1 | . . . . . . . 1 . . . . . . . . . . Weapon Failures 2 | . . . . . . . 1 . . . . . . . . . 1 Overload Shots . | . . . . . . . . . . . . . . . . . . Overflow Damage 1283 | . . . . . . 32 114 139 . . 67 144 . 453 44 152 138 Projectiles . | . . . . . . . . . . . . . . . . . . Explosions 88 | . . . . . . . 26 . . . . 18 . . 44 . . Melee 1195 | . . . . . . 32 88 139 . . 67 126 . 453 . 152 138 Knockbacks 27 | . . . . . 1 4 5 11 . . 1 . . 5 . . . Impact 6 | . . . . . . . . . . . 1 . . 5 . . . Kinetic 21 | . . . . . 1 4 5 11 . . . . . . . . . Secondary . | . . . . . . . . . . . . . . . . . . Self-Inflicted Damage 503 | . . . . . . . 367 . . . . . . . 136 . . Shots 5 | . . . . . . . 4 . . . . . . . 1 . . Rammed 2 | . 1 1 . . . . . . . . . . . . . . . Targets Rammed 12 | . 1 1 . 1 . 6 3 . . . . . . . . . . Kicked 10 | . . . . 1 . 6 3 . . . . . . . . . . Crushed . | . . . . . . . . . . . . . . . . . . Highest Temperature 260 | . 20 10 . 20 32 19 260 133 121 . 39 13 . 147 3 185 172 Average Temperature 40 | . 6 3 . 6 15 8 95 67 77 . 20 7 . 29 3 76 67 Received Heat Transfer 786 | . 126 300 . 42 45 18 99 108 . . . . . 21 9 18 . Siege Activations . | . . . . . . . . . . . . . . . . . . Robots Corrupted 5 | . . . . . . . . . . . 1 . . 4 . . . Combat Hostiles . | . . . . . . . . . . . . . . . . . . Parts Fried 5 | . . . . . . . . . . . 1 . . 4 . . . Impact Corruptions 13 | . . . . . . . . . . . 3 . . 10 . . . Robots Melted . | . . . . . . . . . . . . . . . . . . Combat Hostiles . | . . . . . . . . . . . . . . . . . . Parts Melted 1 | . . . . . 1 . . . . . . . . . . . . Heat Transferred 50 | . . . . . . . . 50 . . . . . . . . . Parts Sabotaged . | . . . . . . . . . . . . . . . . . . Parts Stolen . | . . . . . . . . . . . . . . . . . . Parts Stripped . | . . . . . . . . . . . . . . . . . . Power Chain Reactions . | . . . . . . . . . . . . . . . . . . Alert | -11 -10 -10 -10 -9 -8 -7 -6 -5 -5 -5 -4 -4 -4 -3 -2 -1 -1 ------- Run | Yrd Mat Min Exi Min Mat Fac Fac Fac Upp Upp Fac Ext Cet Res Res Acc Com Peak Influence 1115 | 10 241 160 . 60 46 99 112 207 . . 204 516 578 370 55 424 1115 Initial 346 | . 6 2 . . 7 20 2 33 . . 62 99 221 346 27 10 108 Average 90 | 2 71 37 . 51 13 45 34 64 . . 134 221 452 99 20 160 491 Maximum Alert Level 4 | . 1 . . . . . . 1 . . 1 2 2 1 . 2 4 Low Security (%) 87 | 100 90 100 . 100 100 100 100 99 . . 63 40 . 83 100 78 36 Level 1 8 | . 9 . . . . . . . . . 36 52 7 16 . 18 15 Level 2 2 | . . . . . . . . . . . . 7 92 . . 2 16 Level 3 . | . . . . . . . . . . . . . . . . . 29 Level 4 . | . . . . . . . . . . . . . . . . . 1 Level 5 . | . . . . . . . . . . . . . . . . . . High Security . | . . . . . . . . . . . . . . . . . . Max Security . | . . . . . . . . . . . . . . . . . . Squads Dispatched 51 | . 1 . . . 3 2 11 8 . . 1 . . 6 7 5 7 Investigation 18 | . . . . . 1 . 7 2 . . . . . 4 1 2 1 Extermination 11 | . . . . . . . 4 3 . . 1 . . . 2 1 . Reinforcement 20 | . 1 . . . . 2 . 3 . . . . . 2 4 2 6 Assault . | . . . . . . . . . . . . . . . . . . Garrison 2 | . . . . . 2 . . . . . . . . . . . . Intercept . | . . . . . . . . . . . . . . . . . . Searches Triggered 1 | . . . . . . . . . . . . . . . . 1 . Construction Impeded . | . . . . . . . . . . . . . . . . . . Haulers Reinforced 2 | . . . . . . 1 . 1 . . . . . . . . . Active Scanning Responses . | . . . . . . . . . . . . . . . . . . Cargo Convoy Interrupts . | . . . . . . . . . . . . . . . . . . Stealth | -11 -10 -10 -10 -9 -8 -7 -6 -5 -5 -5 -4 -4 -4 -3 -2 -1 -1 --------- Run | Yrd Mat Min Exi Min Mat Fac Fac Fac Upp Upp Fac Ext Cet Res Res Acc Com Distress Signals 21 | . . . . . 1 . 1 1 . . 2 1 2 10 . . 3 Communications Jammed . | . . . . . . . . . . . . . . . . . . Distress Signals . | . . . . . . . . . . . . . . . . . . Times Spotted 261 | . 18 18 . 5 7 7 19 27 . 3 4 12 7 42 12 21 59 Peak Tracking Total 60 | . 5 3 . 3 4 2 4 4 . 3 8 4 5 12 8 10 60 Tactical Retreats 33 | . 1 . . . . . 2 5 . . 1 2 . 5 2 7 8 Traps | -11 -10 -10 -10 -9 -8 -7 -6 -5 -5 -5 -4 -4 -4 -3 -2 -1 -1 ------- Run | Yrd Mat Min Exi Min Mat Fac Fac Fac Upp Upp Fac Ext Cet Res Res Acc Com Traps Triggered 8 | . . . . . . . 4 1 . . . . . 3 . . . Indirectly . | . . . . . . . . . . . . . . . . . . Trap Hack Attempts 15 | . 7 . . . . . . 4 . . . . . 4 . . . Triggered . | . . . . . . . . . . . . . . . . . . Disarmed 3 | . 1 . . . . . . 2 . . . . . . . . . Reprogrammed . | . . . . . . . . . . . . . . . . . . Reused . | . . . . . . . . . . . . . . . . . . Traps Extracted . | . . . . . . . . . . . . . . . . . . Installed . | . . . . . . . . . . . . . . . . . . Triggered 1 | . . 1 . . . . . . . . . . . . . . . Machines | -11 -10 -10 -10 -9 -8 -7 -6 -5 -5 -5 -4 -4 -4 -3 -2 -1 -1 ---------- Run | Yrd Mat Min Exi Min Mat Fac Fac Fac Upp Upp Fac Ext Cet Res Res Acc Com Machines Disabled 17 | . . . . . . . 5 4 . . . 2 . . 2 4 . Max in Single Turn 4 | . . . . . . . 4 2 . . . 1 . . 2 1 . Garrison Access 7 | . . . . . . 1 1 . . . 1 . . 2 1 1 . Energy Cycler 1 | . . . . . . . . . . . . 1 . . . . . Machines Repaired . | . . . . . . . . . . . . . . . . . . Machines Dismantled 3 | . . . . . . . . . . . . . . . . 3 . Machines Sabotaged . | . . . . . . . . . . . . . . . . . . Overloaded Fab Kills . | . . . . . . . . . . . . . . . . . . Hacking | -11 -10 -10 -10 -9 -8 -7 -6 -5 -5 -5 -4 -4 -4 -3 -2 -1 -1 --------- Run | Yrd Mat Min Exi Min Mat Fac Fac Fac Upp Upp Fac Ext Cet Res Res Acc Com Machines Accessed 72 | . 7 1 1 . . 2 14 6 . . 5 7 2 11 4 7 5 Terminals 50 | . 7 . . . . . 9 4 . . 4 6 2 6 2 5 5 Fabricators 10 | . . . . . . 1 4 2 . . . . . 1 1 1 . Repair Stations . | . . . . . . . . . . . . . . . . . . Recycling Units 3 | . . . . . . . . . . . . 1 . 2 . . . Scanalyzers . | . . . . . . . . . . . . . . . . . . Garrison Access 7 | . . . . . . 1 1 . . . 1 . . 2 1 1 . Total Hacks 223 | . 26 1 1 . . 4 48 18 . . 20 12 7 43 9 23 11 Successful 128 | . 13 1 1 . . 2 23 10 . . 12 7 5 26 7 14 7 Failed 95 | . 13 . . . . 2 25 8 . . 8 5 2 17 2 9 4 Catastrophic 20 | . 2 . . . . . 9 1 . . 2 1 . 3 . 1 1 Database Lockouts . | . . . . . . . . . . . . . . . . . . Manual 105 | . 24 . 1 . . . 25 6 . . 16 2 2 11 4 11 3 Terminals 176 | . 26 . . . . . 34 12 . . 19 10 7 33 5 19 11 Fabricators 29 | . . . . . . 3 13 6 . . . . . 2 3 2 . Repair Stations . | . . . . . . . . . . . . . . . . . . Recycling Units 6 | . . . . . . . . . . . . 2 . 4 . . . Scanalyzers . | . . . . . . . . . . . . . . . . . . Garrison Access 10 | . . . . . . 1 1 . . . 1 . . 4 1 2 . Terminal Hacks 69 | . 6 1 1 . . . 7 5 . . 6 4 5 18 1 9 6 Record 11 | . . . . . . . . . . . 1 . 4 1 . 2 3 Part Schematic 4 | . . . . . . . 1 . . . . . . 3 . . . Robot Schematic 1 | . . . . . . . 1 . . . . . . . . . . Robot Analysis 10 | . 4 . . . . . 3 . . . . . . 3 . . . Prototype ID Bank 1 | . . . . . . . . . . . . . . 1 . . . Open Door 5 | . . 1 . . . . . . . . . 3 1 . . . . Branch Access Points 2 | . . . . . . . . . . . 1 . . . . 1 . Emergency Access Points 3 | . 1 . . . . . . . . . . . . . . 1 1 Machine Index 1 | . . . . . . . . . . . 1 . . . . . . Terminal Index 2 | . . . . . . . . . . . 1 . . . . 1 . Fabricator Index 1 | . . . . . . . . . . . 1 . . . . . . Garrison Index 3 | . . . . . . . . . . . . . . 1 . 1 1 Alert Level 12 | . . . . . . . 2 2 . . 1 1 . 4 1 1 . Unreport Threat 2 | . . . . . . . . . . . . . . 2 . . . Locate Traps 3 | . . . . . . . . 1 . . . . . 1 . 1 . Recall Investigation 1 | . . . . . . . . 1 . . . . . . . . . Recall Extermination 2 | . . . . . . . . 1 . . . . . . . 1 . Recall Reinforcements 1 | . . . . . . . . . . . . . . 1 . . . Recall Assault 1 | . . . . . . . . . . . . . . 1 . . . Registered Components 1 | . 1 . . . . . . . . . . . . . . . . Derelict Proto ID Bank 1 | . . . 1 . . . . . . . . . . . . . . Disengage Seal 1 | . . . . . . . . . . . . . . . . . 1 Fabricator Hacks 20 | . . . . . . 1 8 4 . . . . . 2 3 2 . Network Status 1 | . . . . . . . 1 . . . . . . . . . . Load Schematic 9 | . . . . . . . 3 2 . . . . . 1 2 1 . Build 10 | . . . . . . 1 4 2 . . . . . 1 1 1 . Repair Station Hacks . | . . . . . . . . . . . . . . . . . . Recycling Unit Hacks 4 | . . . . . . . . . . . . 2 . 2 . . . Report Inventory 3 | . . . . . . . . . . . . 1 . 2 . . . Retrieve Components 1 | . . . . . . . . . . . . 1 . . . . . Scanalyzer . | . . . . . . . . . . . . . . . . . . Garrison Access Hacks 7 | . . . . . . 1 1 . . . 1 . . 2 1 1 . Seal Access 7 | . . . . . . 1 1 . . . 1 . . 2 1 1 . Unauthorized Hacks 28 | . 7 . . . . . 7 1 . . 5 1 . 2 2 2 1 Terminals 27 | . 7 . . . . . 7 1 . . 5 1 . 1 2 2 1 Assimilate 7 | . 2 . . . . . 1 . . . 1 1 . . 1 . 1 Botnet 18 | . 4 . . . . . 6 1 . . 3 . . 1 1 2 . Operators 2 | . 1 . . . . . . . . . 1 . . . . . . Fabricators . | . . . . . . . . . . . . . . . . . . Repair Stations . | . . . . . . . . . . . . . . . . . . Recycling Units 1 | . . . . . . . . . . . . . . 1 . . . Tunnel 1 | . . . . . . . . . . . . . . 1 . . . Scanalyzers . | . . . . . . . . . . . . . . . . . . Garrison Access . | . . . . . . . . . . . . . . . . . . Data Cores Recovered 3 | . . . . . . . 1 1 . . . . . 1 . . . Used . | . . . . . . . . . . . . . . . . . . Hacking Detections 49 | . 7 . . . . 1 12 5 . . 1 2 1 8 2 7 3 Full Trace Events 13 | . 1 . . . . . 5 2 . . . . . 1 1 2 1 Feedback Events 2 | . . . . . . . . . . . . . . . . 2 . Corruption 1 | . . . . . . . . . . . . . . . . 1 . Hackware Fried 1 | . . . . . . . . . . . . . . . . 1 . Feedback Blocked . | . . . . . . . . . . . . . . . . . . Robot Schematics Acquired 1 | . . . . . . . 1 . . . . . . . . . . Robots Built 1 | . . . . . . . 1 . . . . . . . . . . Authchips . | . . . . . . . . . . . . . . . . . . Time 250 | . . . . . . . 116 . . . . . . 134 . . . Total Robot Build Rating 3 | . . . . . . . 3 . . . . . . . . . . Part Schematics Acquired 4 | . . . . . . . 1 . . . . . . 3 . . . Parts Built 9 | . . . . . . 2 3 2 . . . . . . 1 1 . Authchips . | . . . . . . . . . . . . . . . . . . Time 756 | . . . . . . 42 335 201 . . . . . . 134 44 . Total Part Build Rating 36 | . . . . . . 8 12 8 . . . . . . 4 4 . Parts Repaired . | . . . . . . . . . . . . . . . . . . Time . | . . . . . . . . . . . . . . . . . . Parts Recycled . | . . . . . . . . . . . . . . . . . . Recycled Matter . | . . . . . . . . . . . . . . . . . . Retrieved Matter . | . . . . . . . . . . . . . . . . . . Retrieved Components 2 | . . . . . . . . . . . . 2 . . . . . Parts Scanalyzed . | . . . . . . . . . . . . . . . . . . Part Schematics Acquired . | . . . . . . . . . . . . . . . . . . Parts Damaged . | . . . . . . . . . . . . . . . . . . Bothacking | -11 -10 -10 -10 -9 -8 -7 -6 -5 -5 -5 -4 -4 -4 -3 -2 -1 -1 ------------ Run | Yrd Mat Min Exi Min Mat Fac Fac Fac Upp Upp Fac Ext Cet Res Res Acc Com Used RIF Installer . | . . . . . . . . . . . . . . . . . . Robots Hacked . | . . . . . . . . . . . . . . . . . . Non-combat . | . . . . . . . . . . . . . . . . . . Combat . | . . . . . . . . . . . . . . . . . . Robot Hacks Applied . | . . . . . . . . . . . . . . . . . . Relay Couplers Released . | . . . . . . . . . . . . . . . . . . Fabnet Peak Effective % . | . . . . . . . . . . . . . . . . . . Robots Rewired 3 | . . . . . . . . . . . . 3 . . . . . Allies Hacked . | . . . . . . . . . . . . . . . . . . Hacks Repelled . | . . . . . . . . . . . . . . . . . . Allies | -11 -10 -10 -10 -9 -8 -7 -6 -5 -5 -5 -4 -4 -4 -3 -2 -1 -1 -------- Run | Yrd Mat Min Exi Min Mat Fac Fac Fac Upp Upp Fac Ext Cet Res Res Acc Com Total Allies 20 | . . 1 . . . . 2 . . . . 10 5 . 1 . 1 Largest Group 12 | . . 1 . . . . 1 . . . . 8 12 9 1 . . Highest-Rated Group 916 | . . 31 . . . . 26 . . . . 481 916 761 10 . . Highest-Rated Ally 159 | . . 31 . . . . 26 . . . . 159 159 159 10 . . Total Orders 3 | . . . . . . . . . . . . . . 3 . . . STAY 1 | . . . . . . . . . . . . . . 1 . . . ROAM 1 | . . . . . . . . . . . . . . 1 . . . FOLLOW 1 | . . . . . . . . . . . . . . 1 . . . Ally Attacks 93 | . . . . . . . . . . . . 22 68 3 . . . Total Damage 3675 | . . . . . . . . . . . . 668 2403 604 . . . Kills 17 | . . . . . . . . . . . . 6 10 1 . . . Allies Corrupted . | . . . . . . . . . . . . . . . . . . Allies Melted 1 | . . . . . . . . . . . . . . 1 . . . Intel | -11 -10 -10 -10 -9 -8 -7 -6 -5 -5 -5 -4 -4 -4 -3 -2 -1 -1 ------- Run | Yrd Mat Min Exi Min Mat Fac Fac Fac Upp Upp Fac Ext Cet Res Res Acc Com Robot Analysis Total 10 | . 4 . . . . . 3 . . . . . . 3 . . . Derelict Logs Recovered 4 | . . 2 . . . . . . 2 . . . . . . . . Drone Launches . | . . . . . . . . . . . . . . . . . . Drone Recoveries . | . . . . . . . . . . . . . . . . . . Exploration | -11 -10 -10 -10 -9 -8 -7 -6 -5 -5 -5 -4 -4 -4 -3 -2 -1 -1 ------------- Run | Yrd Mat Min Exi Min Mat Fac Fac Fac Upp Upp Fac Ext Cet Res Res Acc Com Turns Passed 18958 | 97 1255 2225 1156 479 399 581 3379 2513 144 2 339 971 379 2610 1085 874 470 Spaces Moved 12496 | 52 566 628 207 42 156 338 1391 1354 381 7 789 650 306 2768 733 1329 799 Core 18 | 18 . . . . . . . . . . . . . . . . . Treads 1430 | 29 566 628 207 . . . . . . . . . . . . . . Legs 3056 | 5 . . . 42 156 338 1391 1124 . . . . . . . . . Wheels . | . . . . . . . . . . . . . . . . . . Hover . | . . . . . . . . . . . . . . . . . . Flight 7992 | . . . . . . . . 230 381 7 789 650 306 2768 733 1329 799 Fastest Speed 6 | 50 160 160 560 470 120 120 103 33 36 24 11 11 24 6 17 12 6 Average Speed 83 | 127 160 316 560 578 222 141 140 94 36 32 24 23 35 22 38 26 20 Slowest Speed 820 | 160 160 560 560 820 260 192 192 125 36 36 36 24 40 25 97 27 90 Overloaded Moves 121 | . . . . . . . . 4 . 2 9 12 . 22 13 10 49 Propulsion Burnouts . | . . . . . . . . . . . . . . . . . . Robots Hopped 45 | . . . . . . . . . . . 3 3 . 27 1 9 2 Cave-ins Triggered 16 | . . . . . . . . . . . . . . . . . 16 Exploration Rate (%) 38 | 4 95 97 59 16 18 11 38 25 52 3 17 66 91 35 13 29 26 Regions Visited 17 Branch Regions 8 Pre-discovered Areas 2 | . . 1 . . . . . . . . . . . 1 . . . Known Exits Taken 8 | . . . . . 1 . . 1 1 1 1 . . 1 1 1 . Unknown Exits Taken 9 | 1 1 1 1 1 . 1 1 . . . . 1 1 . . . . Scrap Searched 7 | . . 3 . . . . . . 4 . . . . . . . . Spaces Dug 63 | . . . . . . . . . . . 5 18 . 2 11 8 19 Terrain Destroyed 384 | . . . . . . . 25 29 . . 5 199 57 22 20 8 19 Melee 46 | . . . . . . . . . . . 5 1 . 2 11 8 19 Projectile 2 | . . . . . . . . 2 . . . . . . . . . AOE 336 | . . . . . . . 25 27 . . . 198 57 20 9 . . Terrain Rammed . | . . . . . . . . . . . . . . . . . . Walls Destroyed . | . . . . . . . . . . . . . . . . . . Machines Disabled . | . . . . . . . . . . . . . . . . . . Actions | -11 -10 -10 -10 -9 -8 -7 -6 -5 -5 -5 -4 -4 -4 -3 -2 -1 -1 --------- Run | Yrd Mat Min Exi Min Mat Fac Fac Fac Upp Upp Fac Ext Cet Res Res Acc Com Total 20159 | 73 818 749 208 247 194 424 2733 2467 389 6 919 1426 569 4650 1510 1757 1020 Wait 6756 | 2 182 28 . 183 5 56 1245 978 . . 109 736 244 1763 745 343 137 Move 12397 | 51 565 627 206 41 155 337 1390 1353 380 6 783 643 305 2721 729 1310 795 Hop 36 | . . . . . . . . . . . 2 3 . 19 1 9 2 Pick Up 92 | 8 12 15 1 2 4 2 13 9 1 . 3 3 . 11 1 2 5 Fast Attach 73 | 2 . . . . 1 3 5 8 2 . 7 2 6 14 6 9 8 Attach 56 | 4 1 7 1 1 4 1 3 11 . . 2 . . 9 2 4 6 Detach 10 | . . . . . 1 . . . 2 . . . 1 1 3 2 . Swap 42 | 2 2 2 . . 3 3 9 2 . . 2 1 1 11 1 1 2 Drop 93 | . . 2 . . 11 6 13 10 4 . 5 5 6 18 3 4 6 Fire 293 | 4 48 67 . 19 10 9 17 44 . . . 9 6 46 6 . 8 Melee 234 | . . . . . . 1 35 48 . . 6 24 . 33 12 25 50 Ram . | . . . . . . . . . . . . . . . . . . Kick 10 | . . . . 1 . 6 3 . . . . . . . . . . Crush 2 | . 1 1 . . . . . . . . . . . . . . . Escape Stasis 1 | . . . . . . . . . . . . . . . 1 . . Rewire . | . . . . . . . . . . . . . . . . . . Trap 15 | . 7 . . . . . . 4 . . . . . 4 . . . Miscellaneous 49 | . . . . . . . . . . . . . . . . 48 1 Route ------- -11/Scrapyard -10/Materials (discovered 4 exits: [*Mat x3] / *Min) -10/Mines (discovered 4 exits: [*Mat x2] / *Exi / [*Sub]) -10/Exiles -9/Mines -8/Materials -7/Factory -6/Factory -5/Factory -5/Upper Caves -5/Upper Caves -4/Factory (discovered 4 exits: Upp x2 / *Ext x2) -4/Extension (discovered 2 exits: *Res / *Cet) -4/Cetus (discovered 2 exits: *Res / [*Arc]) -3/Research (discovered 2 exits: *Res / *Qua) -2/Research -1/Access -1/Command History --------- Turn | Location | Event 10 | -11/Scrapyard | Discovered new exit (range 16) 98 | -11/Scrapyard | Entered Materials 256 | -10/Materials | Discovered new exit (range 16) 307 | -10/Materials | Build established: Mutant 462 | -10/Materials | Discovered new exit (range 7) 541 | -10/Materials | Discovered new exit (range 16) 980 | -10/Materials | Discovered new exit (range 16) 1353 | -10/Materials | Entered Mines 1356 | -10/Mines | Met a Derelict who couldn't figure out how to use a Trap Extractor 1448 | -10/Mines | Received a Mining Laser from a helpful Derelict 1864 | -10/Mines | Learned Materials stockpile data 1867 | -10/Mines | Learned location of Zion (-6) 2509 | -10/Mines | Discovered new exit (range 12) 3105 | -10/Mines | Discovered new exit (range 6) 3120 | -10/Mines | Core integrity fell below 50% 3180 | -10/Mines | Lost 3 parts (1p1n1w) 3358 | -10/Mines | Discovered new exit (range 6) 3550 | -10/Mines | Deemed a non-threat by the Exiles lab entrance 3556 | -10/Mines | Discovered new exit (range 5) 3578 | -10/Mines | Entered Exiles 3708 | -10/Exiles | Met 8R-AWN 3809 | -10/Exiles | Met EX-HEX 3966 | -10/Exiles | Met EX-BIN 4033 | -10/Exiles | Aligned with FarCom system 4039 | -10/Exiles | Given EX-Vault access code 4167 | -10/Exiles | Opened EX-Vault 4207 | -10/Exiles | Found Chronowheel 4331 | -10/Exiles | Warned to stay clear of 0b10 Research branches 4482 | -10/Exiles | Met EX-DEC 4667 | -10/Exiles | Discovered new exit (range 14) 4734 | -10/Exiles | Left Exiles lab with Chronowheel 4734 | -10/Exiles | Entered Mines 4943 | -9/Mines | Discovered new exit (range 13) 4944 | -9/Mines | Excavation squad dispatched 4944 | -9/Mines | A large section of the Mines collapsed 5132 | -9/Mines | Core integrity fell below 20% 5213 | -9/Mines | Entered Materials 5213 | -8/Materials | Evolved 4 slots: Propulsion x2, Utility x2 5417 | -8/Materials | Garrison activated, responded to threat 5493 | -8/Materials | Met 7R-MNS 5606 | -8/Materials | Discovered new exit (range 4) 5610 | -8/Materials | Identified exit to Factory 5612 | -8/Materials | Entered Factory 5612 | -7/Factory | Evolved 2 slots: Utility x2 5613 | -7/Factory | Caught up to 7R-MNS 5705 | -7/Factory | Discovered new exit (range 14) 5907 | -7/Factory | Fabricated Imp. Melee Analysis Suite (x2) 6193 | -7/Factory | Entered another Factory area 6193 | -6/Factory | Evolved 2 slots: Propulsion x2 6194 | -6/Factory | Caught up to 7R-MNS 6285 | -6/Factory | Build established: Scavenger-Mutant 6540 | -6/Factory | Fabricated O-24 Administrator? 6853 | -6/Factory | Attacked by 7R-MNS 7225 | -6/Factory | Build established: Hacker-Mutant 7454 | -6/Factory | Fabricated Cld. VTOL Module? 8076 | -6/Factory | Fabricated Cld. VTOL Module? 8661 | -6/Factory | System corruption reached 10% 8693 | -6/Factory | Lost 4 parts (1p3u) 8815 | -6/Factory | Discovered new exit (range 12) 8951 | -6/Factory | Build established: Mutant 9347 | -6/Factory | Fabricated Cld. VTOL Module? 9469 | -6/Factory | Build established: Hacker-Mutant 9572 | -6/Factory | Entered another Factory area 9572 | -5/Factory | Evolved 2 slots: Utility x2 9853 | -5/Factory | Discovered new exit (range 16) 10250 | -5/Factory | Fabricated Cld. VTOL Module? 10617 | -5/Factory | Lost 3 parts (1n1u1w) 11529 | -5/Factory | Lost 3 parts (1p2n) 11727 | -5/Factory | Fabricated Cld. VTOL Module? 12081 | -5/Factory | Identified exit to Upper Caves 12085 | -5/Factory | Entered Upper Caves 12100 | -5/Upper Caves | Learned Factory terminal intel 12192 | -5/Upper Caves | Learned Factory terminal intel 12219 | -5/Upper Caves | Discovered new exit (range 13) 12223 | -5/Upper Caves | Identified exit to Upper Caves 12229 | -5/Upper Caves | Entered another Upper Caves area 12229 | -5/Upper Caves | Discovered new exit (range 7) 12231 | -5/Upper Caves | Identified exit to Factory 12231 | -5/Upper Caves | Entered Factory 12231 | -4/Factory | Evolved 2 slots: Utility x2 12232 | -4/Factory | Loaded intel: 28 terminal locations 12294 | -4/Factory | Identified exit to Upper Caves 12294 | -4/Factory | Identified exit to Extension 12361 | -4/Factory | Found Prototype Hackware 12361 | -4/Factory | Identified Exp. Hacking Suite 12570 | -4/Factory | Build established: Hacker-Sprinter 12570 | -4/Factory | Entered Extension 13188 | -4/Extension | Rescued a captive Derelict 13191 | -4/Extension | Rescued a captive Derelict 13233 | -4/Extension | Rescued a captive Derelict 13235 | -4/Extension | Rescued a captive Derelict 13266 | -4/Extension | Energy Cycler disabled 13267 | -4/Extension | Rescued a captive Derelict 13268 | -4/Extension | Rescued a captive Derelict 13269 | -4/Extension | Rescued a captive Derelict 13283 | -4/Extension | Rescued A7 13377 | -4/Extension | Discovered new exit (range 10) 13377 | -4/Extension | Discovered new exit (range 6) 13541 | -4/Extension | Entered Cetus 13541 | -4/Cetus | Accompanied by 8 allies (A7) 13545 | -4/Cetus | Spotted Cetus Guard 13545 | -4/Cetus | Spotted Cetus Guard 13546 | -4/Cetus | Acquired a Cetus Manufacturing Module code from A7 13548 | -4/Cetus | Spotted Cetus Guard 13548 | -4/Cetus | Spotted Cetus Guard 13564 | -4/Cetus | Allies destroyed Cetus Guard 13571 | -4/Cetus | Allies destroyed Cetus Guard 13594 | -4/Cetus | Started Cetus Manufacturing Module 13607 | -4/Cetus | Escorted A7 to Cetus Mainframe 13619 | -4/Cetus | Manufactured an Enhanced Grunt 13644 | -4/Cetus | Manufactured an Enhanced Grunt 13669 | -4/Cetus | Manufactured an Enhanced Grunt 13694 | -4/Cetus | Manufactured an Enhanced Grunt 13719 | -4/Cetus | Manufactured an Enhanced Grunt 13806 | -4/Cetus | Discovered new exit (range 15) 13840 | -4/Cetus | Spotted Cetus Guard 13852 | -4/Cetus | Allies destroyed Cetus Guard 13867 | -4/Cetus | Discovered new exit (range 15) 13874 | -4/Cetus | Met Revision 17 13879 | -4/Cetus | Lost 3 allies 13920 | -4/Cetus | Entered Research 13920 | -3/Research | Accompanied by 9 allies (A7) 13920 | -3/Research | Evolved 2 slots: Propulsion x1, Utility x1 13925 | -3/Research | Received a hacking code to weaken MAIN.C 13953 | -3/Research | Discovered new exit (range 9) 14120 | -3/Research | Revision forces began assault on 0b10 14155 | -3/Research | Spotted B-86 Titan 14213 | -3/Research | Met up with Revision 17++ 14277 | -3/Research | Lost 5 allies 14466 | -3/Research | Build established: Wizard-Sprinter 14501 | -3/Research | Discovered new exit (range 10) 14564 | -3/Research | Identified exit to Quarantine 14620 | -3/Research | Research terminal network offline 14651 | -3/Research | Identified exit to Research 15923 | -3/Research | Spotted Striker 15957 | -3/Research | Destroyed Striker 16015 | -3/Research | Spotted Striker 16044 | -3/Research | Spotted Executioner 16064 | -3/Research | Found Fusion Bomb Launcher 16125 | -3/Research | Spotted Striker 16530 | -3/Research | Entered another Research area 16530 | -2/Research | Evolved 2 slots: Power x1, Utility x1 17218 | -2/Research | Fabricated Cld. VTOL Module? 17303 | -2/Research | Discovered new exit (range 4) 17306 | -2/Research | Identified exit to Access 17356 | -2/Research | Spotted B-90 Cyclops 17615 | -2/Research | Entered Access 17615 | -1/Access | Evolved 2 slots: Utility x2 17637 | -1/Access | Lost 4 parts (1n3u) 17856 | -1/Access | Identified exit to Command 18093 | -1/Access | Imp. Hacking Suite fried by hacking feedback 18107 | -1/Access | Fabricated Cld. VTOL Module? 18365 | -1/Access | Search patrols dispatched 18405 | -1/Access | Build established: Hacker-Scout 18489 | -1/Access | Entered Command 18525 | -1/Command | Disengaged cave seal 18692 | -1/Command | Lost 4 parts (3n1u) 18746 | -1/Command | P-80 Master assimilated allied WL-HBR(M) 18856 | -1/Command | Crushed by falling debris 18856 | -1/Command | System corruption reached 10% 18869 | -1/Command | Crushed by falling debris 18869 | -1/Command | System corruption reached 30% 18872 | -1/Command | Crushed by falling debris 18877 | -1/Command | Crushed by falling debris 18897 | -1/Command | Crushed by falling debris 18902 | -1/Command | Crushed by falling debris 18904 | -1/Command | Crushed by falling debris 18909 | -1/Command | Crushed by falling debris 18913 | -1/Command | Crushed by falling debris 18914 | -1/Command | Crushed by falling debris 18925 | -1/Command | Crushed by falling debris 18928 | -1/Command | Crushed by falling debris 18928 | -1/Command | Core integrity fell below 50% 18943 | -1/Command | Crushed by falling debris 18948 | -1/Command | Crushed by falling debris 18948 | -1/Command | Core integrity fell below 20% 18951 | -1/Command | Lost 29 parts (3p7n15u4w) 18954 | -1/Command | Crushed by falling debris 18955 | -1/Command | Crushed by falling debris 18959 | -1/Command | Destroyed by P-80 Master with Gamma Rifle Last Messages --------------- Mic. Fission Core destroyed. System corrupted by crushing effect (+1). System corrupted: Substantial component data lost. Impulse Thruster Array destroyed. The unstable cave ceiling collapses. P-80 Master crushed by falling debris. The unstable cave ceiling collapses. Crushed by falling debris. The unstable cave ceiling collapses. Crushed by falling debris. The unstable cave ceiling collapses. Crushed by falling debris. The unstable cave ceiling collapses. Crushed by falling debris. System corrupted: Matter fused (-7). The unstable cave ceiling collapses. Crushed by falling debris. The unstable cave ceiling collapses. Crushed by falling debris. Map ----- +----------------------------------------------------+ | ?????#+#??????????????????????????# ########## | | ??????????????????????????????????# | | ??????????????????????????????????# | | ??????????????????????????????????# | | ??????????????????????????????????# ############# | | ???????????????????????????????##?# #???????????? | | ???????????????????????????????#"##+########?????? | | ????????????????????????????????# #????? | | ????????????????????????????????# #????? | | ????????????????????????????????# ] #????? | | ????????????????????????????????# #????? | | ????????????????????????????????# #????? | | ??????????????s?????????????????# #????? | | ????????????????????????????????# #????? | | ????????????????????????????????#############????? | | ?????????????????????????????????????????????????? | | ?????????????????????????????????????????????????? | | ?????????????????????????????????????????????????? | | ?????????????????????????????????????????????????? | | ???????????????????????????????????????????####### | | ??????????????????????????????????????????? # | | ?????????????????????????????????????????? # | | ???????????????????????????????????????#"""" # | | ???????????????????????????????????????#"""" # | | ????????????????????????###????????????#"""" # | | ???????????????????????##@#????????????#"""" # | | ???????????????????????#p####?#####????? ? | | ???????????????????????##pp #?# #??????? ??? | | ??????????????????# ###pp ### ##########+##### | | ??????????? p + | | ??????????? + | | ??????????? + | | ???????????? / | | ???????????? / | | ????????????? ### ### ### ##########+##### | | ????????????# ???# ??# #?# #??????????????? | | ??????????????????###???#####?#####??????????????? | | ?????????????????????????????????????????????????? | | ?????????????????????????????????????????????????? | | ?????????????????????????????????????????????????? | | ?????????????????????????????????????????????????? | | ?????????????????????????????????????????????????? | | ?????????????????????????????????????????????????? | | ?????????????????????????????????????????????????? | | ?????????????????????????????????????????????????? | | ?????????????????????????????????????????????????? | | ?????????????????????????????????????????????????? | | ?????????????????????????????????????????????????? | | ?????????????????????????????????????????????????? | | ?????????????????????????????????????????????????? | +----------------------------------------------------+ Best States ------------- Heat Dissipation 90 Coolant Potential 100 Energy Generation 25 Energy Capacity 315 Matter Stores 300 Matter Capacity 300 Sight Range 16 Terrain Scan Range 14 Terrain Scan Density 810 ECM Strength 1 Power Amplification 30 Base Temperature (-) 200 Corruption Block 15 Armor Coverage 600 Core Shielding 30 Utility Shielding 66 Evasion (%) 79 Melee Accuracy 14 Launcher Accuracy 40 Recoil Reduction 2 Offensive Hacking 48 Defensive Hacking 34 Item Schematics ----------------- Cld. VTOL Module | -6/Factory | Hacked Centrium Leg | -3/Research | Hacked Lgt. Particle Reactor | -3/Research | Hacked Fusion Bomb Launcher | -3/Research | Hacked Robot Schematics ------------------ Y-54 Guardian | -6/Factory | Hacked Fabricated ------------ Imp. Melee Analysis Suite | x2 | -7/Factory | Preloaded O-24 Administrator | x1 | -6/Factory | Preloaded Cld. VTOL Module | x1 | -6/Factory Cld. VTOL Module | x1 | -6/Factory Cld. VTOL Module | x1 | -6/Factory Cld. VTOL Module | x1 | -5/Factory Cld. VTOL Module | x1 | -5/Factory Cld. VTOL Module | x1 | -2/Research Cld. VTOL Module | x1 | -1/Access Alien Tech Used ----------------- None Achievements -------------- Main Advantage Maximum Efficiency Project G-00 Revising The Future Revolutionary Research Whoosh! Z1$+NX3F=JRE3_ZNQR Challenges ------------ None Game ------ Seed HellfireHoverTube Manual? 0 Play Time 02:34:28 Cumulative 65.2 hours Start 2024.10.23 @ 14:55:35 End 2024.10.25 @ 10:14:58 Sessions 1 Manual Loads 0 Difficulty Rogue Special Mode None Game No. 84 Rogue 84 Adventurer 0 Explorer 0 Win Type - Total 1 Types 1/0/0/0/0/0/0/0/0 Lore% 44 Gallery% 48 Achievement% 46 Wizard Run 0 Options --------- Layout 1 ASCII 0 Keyboard 0 Movement Mouse Keybinds 0 Fullscreen 1 Font 32/SmallcapsGlow Map View 50x35 Zoom Use 0% Tactical HUD 0 Map Filters NONE Filters NONE Steam 1 RUN: 6b047558-e3e2-4e5e-828b-18d6339e019b